[Event "Late-Titled-Tuesday-Blitz-July-09-2024"]
[Site "Chess.com"]
[Date "2024.07.09"]
[Round "11"]
[White "Cambek64"]
[Black "flaviorcb"]
[Result "1/2-1/2"]
[WhiteElo "2455"]
[BlackElo "2182"]
[TimeControl "180+1"]
[EndTime "16:05:04 PDT"]
[Termination "Game drawn by repetition"]

1. e4 {[%clk 0:02:53.5]} 1... c5 {[%clk 0:02:58.5]} 2. Nf3 {[%clk 0:02:53.5]}
2... g6 {[%clk 0:02:59]} 3. c4 {[%clk 0:02:52.6]} 3... Nc6 {[%clk 0:02:56]} 4.
d4 {[%clk 0:02:51.9]} 4... cxd4 {[%clk 0:02:56.9]} 5. Nxd4 {[%clk 0:02:51.9]}
5... Nf6 {[%clk 0:02:57.3]} 6. Nc3 {[%clk 0:02:51.1]} 6... Nxd4 {[%clk
0:02:57.8]} 7. Qxd4 {[%clk 0:02:50.4]} 7... d6 {[%clk 0:02:58.3]} 8. Be2 {[%clk
0:02:40.3]} 8... Bg7 {[%clk 0:02:58.4]} 9. Be3 {[%clk 0:02:39.4]} 9... O-O
{[%clk 0:02:58.9]} 10. Qd2 {[%clk 0:02:39]} 10... Be6 {[%clk 0:02:59.3]} 11. O-O
{[%clk 0:02:37.7]} 11... Qa5 {[%clk 0:02:59.8]} 12. Rac1 {[%clk 0:02:34.7]}
12... Rfc8 {[%clk 0:03:00]} 13. b3 {[%clk 0:02:34.3]} 13... a6 {[%clk
0:03:00.3]} 14. f3 {[%clk 0:02:31.5]} 14... b5 {[%clk 0:02:58.1]} 15. Nd5 {[%clk
0:02:31.7]} 15... Qxd2 {[%clk 0:02:57.6]} 16. Bxd2 {[%clk 0:02:26.7]} 16... Nxd5
{[%clk 0:02:50]} 17. cxd5 {[%clk 0:02:24.4]} 17... Bd7 {[%clk 0:02:48.9]} 18.
Rxc8+ {[%clk 0:02:21.8]} 18... Rxc8 {[%clk 0:02:48.3]} 19. Rc1 {[%clk
0:02:22.2]} 19... Bd4+ {[%clk 0:02:48.2]} 20. Kf1 {[%clk 0:02:21]} 20... Rxc1+
{[%clk 0:02:47.7]} 21. Bxc1 {[%clk 0:02:20.3]} 21... Kf8 {[%clk 0:02:42.7]} 22.
Bd3 {[%clk 0:02:16.3]} 22... Ke8 {[%clk 0:02:42.3]} 23. Ke2 {[%clk 0:02:16.8]}
23... Kd8 {[%clk 0:02:42.4]} 24. b4 {[%clk 0:02:11.1]} 24... Bc3 {[%clk
0:02:31.5]} 25. Bd2 {[%clk 0:02:11.4]} 25... Bxd2 {[%clk 0:02:30.4]} 26. Kxd2
{[%clk 0:02:12.1]} 26... f6 {[%clk 0:02:27.3]} 27. Ke3 {[%clk 0:02:12.2]} 27...
g5 {[%clk 0:02:27]} 28. g3 {[%clk 0:02:11.4]} 28... h6 {[%clk 0:02:25.6]} 29. f4
{[%clk 0:02:10.8]} 29... Ke8 {[%clk 0:02:20.4]} 30. Kd4 {[%clk 0:02:11.2]} 30...
Bg4 {[%clk 0:02:05.7]} 31. e5 {[%clk 0:02:10.5]} 31... Kd7 {[%clk 0:02:00.1]}
32. h4 {[%clk 0:01:53]} 32... gxh4 {[%clk 0:01:58]} 33. gxh4 {[%clk 0:01:52.4]}
33... f5 {[%clk 0:01:35.8]} 34. Bc2 {[%clk 0:01:50.3]} 34... Kc7 {[%clk
0:01:30.6]} 35. Kc3 {[%clk 0:01:25.4]} 35... Kb6 {[%clk 0:01:26.6]} 36. Bb3
{[%clk 0:01:24.5]} 36... a5 {[%clk 0:01:23.5]} 37. a3 {[%clk 0:01:23.1]} 37...
a4 {[%clk 0:01:19.7]} 38. Bc2 {[%clk 0:01:20.2]} 38... h5 {[%clk 0:01:18]} 39.
Kd2 {[%clk 0:01:15.7]} 39... Ka6 {[%clk 0:01:11.4]} 40. Bd3 {[%clk 0:00:57]}
40... Kb6 {[%clk 0:01:11.1]} 41. Ke3 {[%clk 0:00:56.9]} 41... Ka6 {[%clk
0:01:10]} 42. Kd4 {[%clk 0:00:36]} 42... Kb6 {[%clk 0:01:09.7]} 43. Ke3 {[%clk
0:00:34.5]} 43... Ka6 {[%clk 0:01:09.6]} 44. Be2 {[%clk 0:00:34.9]} 44... Bxe2
{[%clk 0:01:06.8]} 45. Kxe2 {[%clk 0:00:33.6]} 45... Kb6 {[%clk 0:01:07]} 46.
Ke3 {[%clk 0:00:32.4]} 46... Kc7 {[%clk 0:01:05.3]} 47. Kd3 {[%clk 0:00:31.4]}
47... Kb6 {[%clk 0:01:05.2]} 48. Kd4 {[%clk 0:00:30.9]} 48... Kc7 {[%clk
0:01:03.9]} 49. Kc3 {[%clk 0:00:26.9]} 49... Kb6 {[%clk 0:01:03.8]} 50. Kd3
{[%clk 0:00:26.1]} 50... Kc7 {[%clk 0:01:03.1]} 51. Ke3 {[%clk 0:00:26.5]} 51...
Kb6 {[%clk 0:01:02.9]} 52. e6 {[%clk 0:00:23.7]} 52... Kc7 {[%clk 0:01:02.4]}
53. Kd4 {[%clk 0:00:23.8]} 53... Kb6 {[%clk 0:01:02.6]} 54. Kd3 {[%clk
0:00:24.4]} 54... Kc7 {[%clk 0:01:02.9]} 55. Kd4 {[%clk 0:00:24.7]} 55... Kb6
{[%clk 0:00:58.8]} 56. Kd3 {[%clk 0:00:24.8]} 56... Kc7 {[%clk 0:00:59.1]} 57.
Kd4 {[%clk 0:00:25.7]} 1/2-1/2

[Event "Late-Titled-Tuesday-Blitz-July-09-2024"]
[Site "Chess.com"]
[Date "2024.07.09"]
[Round "11"]
[White "Byniolus"]
[Black "HATilay"]
[Result "0-1"]
[WhiteElo "2781"]
[BlackElo "2592"]
[TimeControl "180+1"]
[EndTime "16:05:07 PDT"]
[Termination "HATilay won by checkmate"]

1. g4 {[%clk 0:02:57.4]} 1... d5 {[%clk 0:02:58.3]} 2. Bg2 {[%clk 0:02:56.9]}
2... c6 {[%clk 0:02:58.8]} 3. h3 {[%clk 0:02:56.7]} 3... e5 {[%clk 0:02:58]} 4.
d3 {[%clk 0:02:56.7]} 4... Bd6 {[%clk 0:02:55.8]} 5. c4 {[%clk 0:02:56.2]} 5...
Ne7 {[%clk 0:02:55.4]} 6. Nc3 {[%clk 0:02:52.5]} 6... h5 {[%clk 0:02:42.5]} 7.
cxd5 {[%clk 0:02:49.3]} 7... hxg4 {[%clk 0:02:42.4]} 8. hxg4 {[%clk 0:02:50.2]}
8... Rxh1 {[%clk 0:02:42.2]} 9. Bxh1 {[%clk 0:02:51.1]} 9... Bxg4 {[%clk
0:02:42.2]} 10. Qa4 {[%clk 0:02:48.2]} 10... Bd7 {[%clk 0:02:38.9]} 11. Qh4
{[%clk 0:02:47]} 11... Ng6 {[%clk 0:02:34.6]} 12. Qh7 {[%clk 0:02:44.4]} 12...
Bf8 {[%clk 0:02:31.8]} 13. Nf3 {[%clk 0:02:27]} 13... cxd5 {[%clk 0:02:22.9]}
14. Nxd5 {[%clk 0:02:27.9]} 14... Bc6 {[%clk 0:02:19.8]} 15. Nc3 {[%clk
0:02:06.7]} 15... Na6 {[%clk 0:02:12.7]} 16. Be3 {[%clk 0:01:56.8]} 16... Nb4
{[%clk 0:02:00.5]} 17. O-O-O {[%clk 0:01:50.6]} 17... Rc8 {[%clk 0:02:00.2]} 18.
Kb1 {[%clk 0:01:49]} 18... Bd7 {[%clk 0:00:32.8]} 19. Rc1 {[%clk 0:01:25]} 19...
Qa5 {[%clk 0:00:25.2]} 20. a3 {[%clk 0:01:19.9]} 20... Rxc3 {[%clk 0:00:19.1]}
21. Rxc3 {[%clk 0:01:18.9]} 21... Nd5 {[%clk 0:00:19.7]} 22. Bd2 {[%clk
0:00:59.9]} 22... Nxc3+ {[%clk 0:00:15.9]} 23. Bxc3 {[%clk 0:01:00.8]} 23... Qb5
{[%clk 0:00:11.5]} 24. Ng5 {[%clk 0:00:43.6]} 24... Bf5 {[%clk 0:00:05]} 25. Kc2
{[%clk 0:00:24.9]} 25... Qd7 {[%clk 0:00:02.6]} 26. Qh2 {[%clk 0:00:14.5]} 26...
Nf4 {[%clk 0:00:02.5]} 27. Kd2 {[%clk 0:00:10.1]} 27... Nxd3 {[%clk 0:00:02.4]}
28. exd3 {[%clk 0:00:03.2]} 28... Qxd3+ {[%clk 0:00:03.3]} 29. Ke1 {[%clk
0:00:03.9]} 29... Qb1+ {[%clk 0:00:03.6]} 30. Ke2 {[%clk 0:00:04.8]} 30... Qc2+
{[%clk 0:00:03.7]} 31. Kf3 {[%clk 0:00:04.2]} 31... Qd1+ {[%clk 0:00:03.5]} 32.
Kg3 {[%clk 0:00:03.7]} 32... Qg4# {[%clk 0:00:03.2]} 0-1

[Event "Late-Titled-Tuesday-Blitz-July-09-2024"]
[Site "Chess.com"]
[Date "2024.07.09"]
[Round "11"]
[White "th3d4rkness"]
[Black "SocoLoco"]
[Result "0-1"]
[WhiteElo "2211"]
[BlackElo "2096"]
[TimeControl "180+1"]
[EndTime "16:05:07 PDT"]
[Termination "SocoLoco won on time"]

1. e4 {[%clk 0:02:26.4]} 1... c5 {[%clk 0:02:54.4]} 2. Nc3 {[%clk 0:02:25.6]}
2... Nc6 {[%clk 0:02:52.8]} 3. Bb5 {[%clk 0:02:25.2]} 3... Nd4 {[%clk 0:02:51]}
4. Bc4 {[%clk 0:02:25.6]} 4... e6 {[%clk 0:02:48.2]} 5. Nf3 {[%clk 0:02:25.9]}
5... Ne7 {[%clk 0:02:46.9]} 6. Nxd4 {[%clk 0:02:25.5]} 6... cxd4 {[%clk
0:02:47.7]} 7. Ne2 {[%clk 0:02:25.6]} 7... Nc6 {[%clk 0:02:45.8]} 8. d3 {[%clk
0:02:24]} 8... Bc5 {[%clk 0:02:37.2]} 9. O-O {[%clk 0:02:23.1]} 9... a6 {[%clk
0:02:36.1]} 10. a4 {[%clk 0:02:22.4]} 10... b6 {[%clk 0:02:10.2]} 11. Kh1 {[%clk
0:02:12.6]} 11... Bb7 {[%clk 0:02:10.3]} 12. f4 {[%clk 0:02:05.9]} 12... Qh4
{[%clk 0:01:45.9]} 13. Rf3 {[%clk 0:01:47.6]} 13... f5 {[%clk 0:01:32.3]} 14.
exf5 {[%clk 0:01:42.6]} 14... exf5 {[%clk 0:01:31.5]} 15. Rh3 {[%clk 0:01:42]}
15... Qf6 {[%clk 0:01:28]} 16. Ng3 {[%clk 0:01:34.3]} 16... O-O-O {[%clk
0:01:22.6]} 17. Bd5 {[%clk 0:01:25.3]} 17... h6 {[%clk 0:01:15.3]} 18. Nh5
{[%clk 0:01:19.7]} 18... Qe7 {[%clk 0:01:10.6]} 19. Bd2 {[%clk 0:01:09]} 19...
g6 {[%clk 0:01:08.7]} 20. Ng3 {[%clk 0:01:06.1]} 20... Qd6 {[%clk 0:01:01]} 21.
Bf3 {[%clk 0:00:39.2]} 21... Rdg8 {[%clk 0:01:00.4]} 22. c3 {[%clk 0:00:28.7]}
22... Qf6 {[%clk 0:00:58.5]} 23. c4 {[%clk 0:00:19]} 23... a5 {[%clk 0:00:54.8]}
24. b4 {[%clk 0:00:15.6]} 24... Bxb4 {[%clk 0:00:49.9]} 25. Bxb4 {[%clk
0:00:14.4]} 25... Nxb4 {[%clk 0:00:50.4]} 26. Bxb7+ {[%clk 0:00:14.5]} 26...
Kxb7 {[%clk 0:00:51.3]} 27. Qf3+ {[%clk 0:00:14.5]} 27... Qc6 {[%clk 0:00:49.4]}
28. Qf2 {[%clk 0:00:13.1]} 28... Nxd3 {[%clk 0:00:45.2]} 29. Qxd4 {[%clk
0:00:12.8]} 29... Nc5 {[%clk 0:00:44.5]} 30. Ne2 {[%clk 0:00:11.7]} 30... g5
{[%clk 0:00:42.8]} 31. fxg5 {[%clk 0:00:09.9]} 31... Rxg5 {[%clk 0:00:39]} 32.
Rg3 {[%clk 0:00:10.1]} 32... Rhg8 {[%clk 0:00:37.5]} 33. Rf1 {[%clk 0:00:08.5]}
33... Rxg3 {[%clk 0:00:36.6]} 34. hxg3 {[%clk 0:00:08.1]} 34... Ne4 {[%clk
0:00:32.5]} 35. Rf3 {[%clk 0:00:06.9]} 35... Qxa4 {[%clk 0:00:26]} 36. Kh2
{[%clk 0:00:07.1]} 36... Qc6 {[%clk 0:00:25]} 37. Nf4 {[%clk 0:00:04.7]} 37...
a4 {[%clk 0:00:22.8]} 38. Nd3 {[%clk 0:00:02.8]} 38... a3 {[%clk 0:00:21.1]} 39.
Nb4 {[%clk 0:00:03.2]} 39... Qc5 {[%clk 0:00:20.4]} 0-1

[Event "Late-Titled-Tuesday-Blitz-July-09-2024"]
[Site "Chess.com"]
[Date "2024.07.09"]
[Round "11"]
[White "Narek_Ghimoyan"]
[Black "KNVB"]
[Result "1-0"]
[WhiteElo "2541"]
[BlackElo "2653"]
[TimeControl "180+1"]
[EndTime "16:05:14 PDT"]
[Termination "Narek_Ghimoyan won by resignation"]

1. e4 {[%clk 0:03:00.9]} 1... e5 {[%clk 0:02:59.6]} 2. Nf3 {[%clk 0:03:00.3]}
2... Nc6 {[%clk 0:02:57.4]} 3. Bb5 {[%clk 0:03:00]} 3... Qf6 {[%clk 0:02:57.2]}
4. Nc3 {[%clk 0:02:53.4]} 4... Bd6 {[%clk 0:02:55.9]} 5. O-O {[%clk 0:02:52.5]}
5... Nge7 {[%clk 0:02:55.5]} 6. d3 {[%clk 0:02:47.7]} 6... Nd4 {[%clk
0:02:55.1]} 7. Bc4 {[%clk 0:02:29.1]} 7... Nxf3+ {[%clk 0:02:53.9]} 8. Qxf3
{[%clk 0:02:30]} 8... Qxf3 {[%clk 0:02:54]} 9. gxf3 {[%clk 0:02:30.9]} 9... c6
{[%clk 0:02:53.9]} 10. f4 {[%clk 0:02:20.3]} 10... exf4 {[%clk 0:02:52.8]} 11.
d4 {[%clk 0:02:20.7]} 11... f6 {[%clk 0:02:37.6]} 12. Re1 {[%clk 0:02:19.8]}
12... Ng6 {[%clk 0:02:32.4]} 13. e5 {[%clk 0:02:19.8]} 13... fxe5 {[%clk
0:02:31.8]} 14. dxe5 {[%clk 0:02:20.7]} 14... Bxe5 {[%clk 0:02:27.6]} 15. Bd3
{[%clk 0:02:20.1]} 15... d6 {[%clk 0:02:11.9]} 16. Bxg6+ {[%clk 0:02:18.8]}
16... hxg6 {[%clk 0:02:12.8]} 17. Bxf4 {[%clk 0:02:18.9]} 17... Rh5 {[%clk
0:01:04.6]} 18. Bxe5 {[%clk 0:02:18.8]} 18... dxe5 {[%clk 0:01:00.6]} 19. f4
{[%clk 0:02:18]} 19... Kf7 {[%clk 0:01:00]} 20. fxe5 {[%clk 0:02:17.2]} 20...
Bf5 {[%clk 0:00:59.3]} 21. Rad1 {[%clk 0:02:16.5]} 21... Rg5+ {[%clk 0:00:56.2]}
22. Kh1 {[%clk 0:01:59.6]} 22... Ke7 {[%clk 0:00:51.5]} 23. Ne4 {[%clk
0:01:55.3]} 23... Bxe4+ {[%clk 0:00:41.3]} 24. Rxe4 {[%clk 0:01:53.8]} 24... Rf8
{[%clk 0:00:42.2]} 25. Re2 {[%clk 0:01:46.8]} 25... Rff5 {[%clk 0:00:40.5]} 26.
e6 {[%clk 0:01:44.2]} 26... Rd5 {[%clk 0:00:41.4]} 27. Rf1 {[%clk 0:01:41.9]}
27... Rgf5 {[%clk 0:00:41.2]} 28. Rg1 {[%clk 0:01:40.5]} 28... g5 {[%clk
0:00:40]} 29. h4 {[%clk 0:01:29.2]} 29... Rd4 {[%clk 0:00:29.4]} 30. Rh2 {[%clk
0:01:27.4]} 30... g4 {[%clk 0:00:07.3]} 31. Rhg2 {[%clk 0:01:23.1]} 31... Rff4
{[%clk 0:00:07.8]} 32. Re1 {[%clk 0:01:20.8]} 32... Rf3 {[%clk 0:00:02.8]} 33.
c3 {[%clk 0:01:17.7]} 33... Rdf4 {[%clk 0:00:02.1]} 34. Rd2 {[%clk 0:01:14.7]}
34... Rf1+ {[%clk 0:00:02.3]} 35. Rxf1 {[%clk 0:01:13.8]} 35... Rxf1+ {[%clk
0:00:03.2]} 36. Kg2 {[%clk 0:01:14.3]} 36... Ra1 {[%clk 0:00:03.5]} 37. Rd7+
{[%clk 0:01:13.6]} 37... Kxe6 {[%clk 0:00:04.1]} 38. Rxg7 {[%clk 0:01:12.7]}
38... Rxa2 {[%clk 0:00:01.9]} 39. Rxb7 {[%clk 0:01:13.3]} 39... Kf5 {[%clk
0:00:01.7]} 40. Kg3 {[%clk 0:01:13.6]} 40... Ra1 {[%clk 0:00:01.9]} 41. Rf7+
{[%clk 0:01:12.2]} 41... Kg6 {[%clk 0:00:02.4]} 42. Rf4 {[%clk 0:01:09.9]} 42...
Rg1+ {[%clk 0:00:02.2]} 43. Kf2 {[%clk 0:01:09.2]} 43... Rb1 {[%clk 0:00:01.4]}
44. Rxg4+ {[%clk 0:01:09.4]} 44... Kh5 {[%clk 0:00:02.1]} 45. Rb4 {[%clk
0:01:10]} 45... c5 {[%clk 0:00:02.7]} 46. Rb7 {[%clk 0:01:08.6]} 46... Kxh4
{[%clk 0:00:01.9]} 47. Ke3 {[%clk 0:01:08.5]} 47... Kg5 {[%clk 0:00:01.7]} 48.
Kd3 {[%clk 0:01:08.8]} 48... Kf5 {[%clk 0:00:02]} 49. Kc4 {[%clk 0:01:06.5]}
49... a5 {[%clk 0:00:02.5]} 50. Kxc5 {[%clk 0:01:04.4]} 50... a4 {[%clk
0:00:03.1]} 51. Rb4 {[%clk 0:01:03.7]} 51... Ke6 {[%clk 0:00:02.7]} 52. Kb5
{[%clk 0:01:03.8]} 52... Ra1 {[%clk 0:00:01.9]} 53. Rxa4 {[%clk 0:01:03.5]}
53... Rb1 {[%clk 0:00:02.6]} 54. b4 {[%clk 0:01:02.7]} 54... Kd6 {[%clk
0:00:02.5]} 55. c4 {[%clk 0:01:03.1]} 55... Kc7 {[%clk 0:00:03.1]} 56. Ra6
{[%clk 0:01:03.6]} 56... Rg1 {[%clk 0:00:03]} 57. Rh6 {[%clk 0:01:04]} 57...
Rg5+ {[%clk 0:00:02.4]} 58. c5 {[%clk 0:01:04.6]} 58... Kb7 {[%clk 0:00:01.4]}
59. Rh7+ {[%clk 0:01:04.5]} 59... Kb8 {[%clk 0:00:01.8]} 60. Kb6 {[%clk
0:01:05.1]} 60... Rg8 {[%clk 0:00:01.3]} 61. c6 {[%clk 0:01:05.5]} 61... Kc8
{[%clk 0:00:01.2]} 62. Ra7 {[%clk 0:01:05.7]} 62... Kb8 {[%clk 0:00:01.8]} 63.
c7+ {[%clk 0:01:06.2]} 63... Kc8 {[%clk 0:00:02.6]} 64. Ra8+ {[%clk 0:01:06.9]}
64... Kd7 {[%clk 0:00:03.4]} 65. Rxg8 {[%clk 0:01:07.3]} 1-0

[Event "Late-Titled-Tuesday-Blitz-July-09-2024"]
[Site "Chess.com"]
[Date "2024.07.09"]
[Round "11"]
[White "Maluco_do_Natal_00"]
[Black "nitpicker"]
[Result "1-0"]
[WhiteElo "2030"]
[BlackElo "2271"]
[TimeControl "180+1"]
[EndTime "16:05:15 PDT"]
[Termination "Maluco_do_Natal_00 won on time"]

1. e4 {[%clk 0:03:00]} 1... c5 {[%clk 0:02:59.4]} 2. Nf3 {[%clk 0:02:59.1]} 2...
Nc6 {[%clk 0:02:58.9]} 3. d4 {[%clk 0:02:58.7]} 3... cxd4 {[%clk 0:02:59.1]} 4.
Nxd4 {[%clk 0:02:59.6]} 4... Nf6 {[%clk 0:02:59.3]} 5. Nc3 {[%clk 0:02:59.3]}
5... d6 {[%clk 0:02:59.5]} 6. Be2 {[%clk 0:02:52.2]} 6... e6 {[%clk 0:02:54.9]}
7. Be3 {[%clk 0:02:43.1]} 7... a6 {[%clk 0:02:54.7]} 8. O-O {[%clk 0:02:40.9]}
8... Qc7 {[%clk 0:02:53.5]} 9. a4 {[%clk 0:02:38.8]} 9... b6 {[%clk 0:02:46]}
10. f4 {[%clk 0:02:32.4]} 10... Bb7 {[%clk 0:02:27.7]} 11. Bf3 {[%clk
0:02:29.2]} 11... Be7 {[%clk 0:02:20.3]} 12. Qd2 {[%clk 0:02:15.5]} 12... O-O
{[%clk 0:02:19.2]} 13. Qf2 {[%clk 0:02:09.9]} 13... Nd7 {[%clk 0:02:06.6]} 14.
Rad1 {[%clk 0:02:04.3]} 14... Rac8 {[%clk 0:02:04.5]} 15. f5 {[%clk 0:01:57.9]}
15... Nxd4 {[%clk 0:01:41.1]} 16. Bxd4 {[%clk 0:01:55]} 16... e5 {[%clk
0:01:14.4]} 17. Be3 {[%clk 0:01:41.2]} 17... Rfd8 {[%clk 0:01:14.5]} 18. Rd2
{[%clk 0:01:21.8]} 18... Bc6 {[%clk 0:01:07.1]} 19. Bg4 {[%clk 0:01:09.2]} 19...
b5 {[%clk 0:00:59.9]} 20. f6 {[%clk 0:00:50.2]} 20... Bxf6 {[%clk 0:00:55.3]}
21. Bxd7 {[%clk 0:00:46.9]} 21... Qxd7 {[%clk 0:00:53]} 22. axb5 {[%clk
0:00:42.9]} 22... axb5 {[%clk 0:00:52.6]} 23. Nd5 {[%clk 0:00:42.8]} 23... Bxd5
{[%clk 0:00:49.2]} 24. Rxd5 {[%clk 0:00:43.7]} 24... Qc6 {[%clk 0:00:44.4]} 25.
Qg3 {[%clk 0:00:34.5]} 25... Kh8 {[%clk 0:00:23.3]} 26. c3 {[%clk 0:00:15.3]}
26... Qc4 {[%clk 0:00:23.2]} 27. Rxf6 {[%clk 0:00:11.2]} 27... gxf6 {[%clk
0:00:22.1]} 28. Qh4 {[%clk 0:00:11.2]} 28... Kg7 {[%clk 0:00:14.3]} 29. Bh6+
{[%clk 0:00:10.3]} 29... Kg6 {[%clk 0:00:12.2]} 30. Be3 {[%clk 0:00:05.9]} 30...
h5 {[%clk 0:00:10.3]} 31. Qg3+ {[%clk 0:00:04.3]} 31... Kh7 {[%clk 0:00:10.3]}
32. Qf3 {[%clk 0:00:04]} 32... Rg8 {[%clk 0:00:09]} 33. Qxh5+ {[%clk 0:00:03.5]}
1-0

[Event "Late-Titled-Tuesday-Blitz-July-09-2024"]
[Site "Chess.com"]
[Date "2024.07.09"]
[Round "11"]
[White "MatthewG-p4p"]
[Black "Hattori-Hanzo78"]
[Result "1-0"]
[WhiteElo "2897"]
[BlackElo "2594"]
[TimeControl "180+1"]
[EndTime "16:05:16 PDT"]
[Termination "MatthewG-p4p won by resignation"]

1. f4 {[%clk 0:03:00.9]} 1... Nf6 {[%clk 0:02:55.3]} 2. Nf3 {[%clk 0:03:00.8]}
2... g6 {[%clk 0:02:55.6]} 3. g3 {[%clk 0:03:01.7]} 3... Bg7 {[%clk 0:02:56.3]}
4. Bg2 {[%clk 0:03:02.6]} 4... O-O {[%clk 0:02:57]} 5. O-O {[%clk 0:03:03.5]}
5... d5 {[%clk 0:02:57]} 6. d3 {[%clk 0:03:04.4]} 6... c5 {[%clk 0:02:57.5]} 7.
Nc3 {[%clk 0:03:05]} 7... Nc6 {[%clk 0:02:58]} 8. e4 {[%clk 0:03:05.3]} 8... Bg4
{[%clk 0:02:52.2]} 9. h3 {[%clk 0:03:05]} 9... Bxf3 {[%clk 0:02:51.6]} 10. Qxf3
{[%clk 0:03:05.9]} 10... Nd4 {[%clk 0:02:51]} 11. Qf2 {[%clk 0:03:06.2]} 11...
e6 {[%clk 0:02:47.1]} 12. g4 {[%clk 0:03:03.4]} 12... dxe4 {[%clk 0:02:12.6]}
13. dxe4 {[%clk 0:03:04.3]} 13... b5 {[%clk 0:02:10.5]} 14. e5 {[%clk
0:03:00.8]} 14... Nd5 {[%clk 0:02:09.9]} 15. Ne4 {[%clk 0:02:52.7]} 15... Qc7
{[%clk 0:02:04.9]} 16. c3 {[%clk 0:02:51.5]} 16... Nc6 {[%clk 0:02:00.7]} 17.
Qxc5 {[%clk 0:02:51.4]} 17... Rfd8 {[%clk 0:02:00.4]} 18. Qxb5 {[%clk
0:02:40.9]} 18... Rab8 {[%clk 0:01:50]} 19. Qe2 {[%clk 0:02:37.7]} 19... Na5
{[%clk 0:01:45.6]} 20. Nd6 {[%clk 0:02:29.3]} 20... Bf8 {[%clk 0:01:28]} 21. f5
{[%clk 0:02:24.5]} 21... Bxd6 {[%clk 0:01:26.4]} 22. exd6 {[%clk 0:02:24.7]}
22... Qxd6 {[%clk 0:01:26.4]} 23. fxe6 {[%clk 0:02:13.5]} 23... fxe6 {[%clk
0:01:26.7]} 24. Bg5 {[%clk 0:02:13.3]} 24... Rf8 {[%clk 0:01:23.3]} 25. Rae1
{[%clk 0:02:12.4]} 25... Rxf1+ {[%clk 0:01:22.6]} 26. Rxf1 {[%clk 0:02:12.4]}
26... Rf8 {[%clk 0:01:08.4]} 27. Re1 {[%clk 0:02:09.4]} 27... Re8 {[%clk
0:01:04.1]} 28. Qe5 {[%clk 0:02:01]} 28... Qb6+ {[%clk 0:00:45.8]} 29. Kh1
{[%clk 0:01:59.5]} 29... Nc4 {[%clk 0:00:44.4]} 30. Qe2 {[%clk 0:01:39.7]} 30...
Qc5 {[%clk 0:00:39.7]} 31. b4 {[%clk 0:01:34.7]} 31... Qc6 {[%clk 0:00:36.7]}
32. Qd3 {[%clk 0:01:35.1]} 32... Ncb6 {[%clk 0:00:33.4]} 33. c4 {[%clk
0:01:33.3]} 33... Nxb4 {[%clk 0:00:25.2]} 34. Bxc6 {[%clk 0:01:32.8]} 34... Nxd3
{[%clk 0:00:25.4]} 35. Bxe8 {[%clk 0:01:16.2]} 35... Nxe1 {[%clk 0:00:25.7]} 36.
c5 {[%clk 0:01:17.1]} 36... Nd5 {[%clk 0:00:26]} 37. c6 {[%clk 0:01:08.6]} 37...
Nd3 {[%clk 0:00:25.8]} 38. Bd8 {[%clk 0:00:59.8]} 38... Kf8 {[%clk 0:00:20.8]}
39. Bd7 {[%clk 0:01:00]} 39... Nc5 {[%clk 0:00:21]} 40. Kg2 {[%clk 0:00:52.2]}
40... Kf7 {[%clk 0:00:18.1]} 41. Kf3 {[%clk 0:00:50.5]} 41... h5 {[%clk
0:00:15.1]} 42. Bc8 {[%clk 0:00:46]} 42... hxg4+ {[%clk 0:00:11.2]} 43. hxg4
{[%clk 0:00:46.1]} 43... Nb4 {[%clk 0:00:08.5]} 44. c7 {[%clk 0:00:39]} 44...
Nd5 {[%clk 0:00:08.8]} 45. Bxe6+ {[%clk 0:00:38.1]} 45... Nxe6 {[%clk 0:00:07]}
46. c8=Q {[%clk 0:00:39]} 46... Nd4+ {[%clk 0:00:01.7]} 47. Ke4 {[%clk
0:00:36.1]} 47... Nb6 {[%clk 0:00:01.5]} 48. Bxb6 {[%clk 0:00:34.6]} 48... Ne6
{[%clk 0:00:01.4]} 49. Qd7+ {[%clk 0:00:34.6]} 49... Kf6 {[%clk 0:00:01.9]} 50.
Bd4+ {[%clk 0:00:35.5]} 50... Kg5 {[%clk 0:00:01.7]} 51. Qxe6 {[%clk 0:00:35.4]}
51... Kh4 {[%clk 0:00:02.6]} 1-0

[Event "Late-Titled-Tuesday-Blitz-July-09-2024"]
[Site "Chess.com"]
[Date "2024.07.09"]
[Round "11"]
[White "AlphaPerseii"]
[Black "1g60-1"]
[Result "0-1"]
[WhiteElo "2390"]
[BlackElo "2479"]
[TimeControl "180+1"]
[EndTime "16:05:16 PDT"]
[Termination "1g60-1 won by resignation"]

1. Nf3 {[%clk 0:03:00.3]} 1... f5 {[%clk 0:02:59.8]} 2. d4 {[%clk 0:02:58.8]}
2... Nf6 {[%clk 0:02:59.9]} 3. c4 {[%clk 0:02:58.2]} 3... e6 {[%clk 0:03:00.2]}
4. Nc3 {[%clk 0:02:56.8]} 4... Be7 {[%clk 0:02:58.4]} 5. g3 {[%clk 0:02:56.3]}
5... d6 {[%clk 0:02:58.4]} 6. Bg2 {[%clk 0:02:54.2]} 6... O-O {[%clk 0:02:58.6]}
7. O-O {[%clk 0:02:44.6]} 7... Ne4 {[%clk 0:02:57.8]} 8. Nd2 {[%clk 0:02:41]}
8... Nxc3 {[%clk 0:02:51]} 9. bxc3 {[%clk 0:02:41.9]} 9... e5 {[%clk 0:02:37.7]}
10. Qb3 {[%clk 0:02:01]} 10... e4 {[%clk 0:02:20.2]} 11. c5+ {[%clk 0:01:54.5]}
11... d5 {[%clk 0:02:18.5]} 12. c4 {[%clk 0:01:44.8]} 12... c6 {[%clk
0:02:15.2]} 13. cxd5 {[%clk 0:01:42.4]} 13... cxd5 {[%clk 0:02:04.8]} 14. Nb1
{[%clk 0:01:38.4]} 14... Nc6 {[%clk 0:02:02.3]} 15. Rd1 {[%clk 0:01:31]} 15...
Bf6 {[%clk 0:01:48.2]} 16. Be3 {[%clk 0:01:30.7]} 16... Na5 {[%clk 0:01:36.3]}
17. Qc2 {[%clk 0:01:15.5]} 17... Nc4 {[%clk 0:01:36.4]} 18. Nc3 {[%clk
0:01:15.8]} 18... Nxe3 {[%clk 0:01:33.8]} 19. fxe3 {[%clk 0:01:16.6]} 19... Bg5
{[%clk 0:01:32.2]} 20. Kf2 {[%clk 0:01:14.4]} 20... Be6 {[%clk 0:01:25.6]} 21.
Rab1 {[%clk 0:01:13.1]} 21... Rb8 {[%clk 0:01:25]} 22. Qa4 {[%clk 0:01:10.4]}
22... a6 {[%clk 0:01:23.1]} 23. Rb6 {[%clk 0:01:04.6]} 23... Bd7 {[%clk
0:01:15.5]} 24. Qb3 {[%clk 0:01:02.2]} 24... Bc6 {[%clk 0:01:15.7]} 25. Rb1
{[%clk 0:00:57.6]} 25... Kh8 {[%clk 0:00:57.5]} 26. a4 {[%clk 0:00:50.1]} 26...
h5 {[%clk 0:00:53.3]} 27. h4 {[%clk 0:00:45.4]} 27... Bh6 {[%clk 0:00:51.6]} 28.
Rh1 {[%clk 0:00:42.5]} 28... g5 {[%clk 0:00:48.6]} 29. hxg5 {[%clk 0:00:41]}
29... Qxg5 {[%clk 0:00:49.5]} 30. Nd1 {[%clk 0:00:37.8]} 30... Rg8 {[%clk
0:00:40.9]} 31. Rh3 {[%clk 0:00:36.9]} 31... Rbf8 {[%clk 0:00:35.9]} 32. Ke1
{[%clk 0:00:32.6]} 32... h4 {[%clk 0:00:25.3]} 33. Rxh4 {[%clk 0:00:32.5]} 33...
Qxg3+ {[%clk 0:00:25.2]} 34. Kd2 {[%clk 0:00:30.5]} 34... Qxh4 {[%clk
0:00:25.5]} 35. Bf1 {[%clk 0:00:29.7]} 35... Qh1 {[%clk 0:00:22.6]} 36. Rxc6
{[%clk 0:00:26.9]} 36... bxc6 {[%clk 0:00:21.2]} 37. Qb7 {[%clk 0:00:27.3]}
37... Qxf1 {[%clk 0:00:17.1]} 38. Qxc6 {[%clk 0:00:27.6]} 38... Qh3 {[%clk
0:00:15.8]} 39. Qxd5 {[%clk 0:00:26.9]} 39... Qh4 {[%clk 0:00:14.3]} 40. c6
{[%clk 0:00:25.1]} 40... Qf6 {[%clk 0:00:13.7]} 41. Nc3 {[%clk 0:00:24.6]} 41...
Rc8 {[%clk 0:00:10.6]} 42. Qd7 {[%clk 0:00:21.7]} 42... Rgd8 {[%clk 0:00:09.5]}
43. Nd5 {[%clk 0:00:16.4]} 43... Qxd4+ {[%clk 0:00:08.2]} 0-1